[Event "6e Open International d'Echecs des Sable"]
[Site "Sables d'Olonne, France"]
[Date "2019.07.17"]
[Round "7.2"]
[White "Prie, Eric"]
[Black "Vidal, Llewellyn"]
[Result "0-1"]
[ECO "D00"]
[WhiteElo "2436"]
[BlackElo "2336"]
[Annotator "jeanluc"]
[PlyCount "146"]
[EventDate "2019.??.??"]
[TimeControl "1/40:0"]
[WhiteClock "0:00:35"]
[BlackClock "0:02:48"]

1. d4 {[%emt 0:00:00]} d5 {[%emt 0:00:00]} 2. Bf4 {[%emt 0:00:00]} Nf6 {
[%emt 0:00:00]} 3. e3 {[%emt 0:00:00]} e6 {[%emt 0:00:00]} 4. Nd2 {[%emt 0:00:
00]} Bd6 {[%emt 0:00:00]} 5. Bg3 {[%emt 0:00:00]} O-O {[%emt 0:00:00]} 6. Bd3 {
[%emt 0:00:00]} c5 {[%emt 0:00:00]} 7. c3 {[%emt 0:00:00]} Qc7 {[%emt 0:00:00]}
8. Bxd6 {[%emt 0:00:00]} Qxd6 {[%emt 0:00:00]} 9. f4 {[%emt 0:00:00]} cxd4 {
[%emt 0:00:00]} 10. cxd4 {[%emt 0:00:00]} b6 {[%emt 0:00:00]} 11. Qe2 {[%emt 0:
00:00]} Bb7 {[%emt 0:00:00]} 12. Ngf3 {[%emt 0:00:00]} Nc6 {[%emt 0:00:00]} 13.
a3 {[%emt 0:00:00]} Ne7 {[%emt 0:00:00]} 14. O-O {[%emt 0:00:00]} h6 {[%emt 0:
00:00]} 15. Rac1 {[%emt 0:00:00]} Rac8 {[%emt 0:00:00]} 16. Ne5 {[%emt 0:00:00]
} Ne4 {[%emt 0:00:00]} 17. Nxe4 {[%emt 0:00:00]} dxe4 {[%emt 0:00:00]} 18. Bb1
{[%emt 0:00:00]} f6 {[%emt 0:00:00]} 19. Nc4 {[%emt 0:00:00]} Qd7 {[%emt 0:00:
00]} 20. Nd2 {[%emt 0:00:00]} f5 {[%emt 0:00:00]} 21. Ba2 {[%emt 0:00:00]} Bd5
{[%emt 0:00:00]} 22. Bc4 {[%emt 0:00:00]} Bxc4 {[%emt 0:00:00]} 23. Nxc4 {
[%emt 0:00:00]} Qb5 {[%emt 0:00:00]} 24. Kf2 {[%emt 0:00:00]} Qa4 {[%emt 0:00:
00]} 25. Nd6 {[%emt 0:00:00]} Rxc1 {[%emt 0:00:00]} 26. Rxc1 {[%emt 0:00:00]}
Qd7 {[%emt 0:00:00]} 27. Nb5 {[%emt 0:00:00]} a6 {[%emt 0:00:00]} 28. Nc3 {
[%emt 0:00:00]} b5 {[%emt 0:00:00]} 29. Na2 {[%emt 0:00:00]} g5 {[%emt 0:00:00]
} 30. g3 {[%emt 0:00:00]} gxf4 {[%emt 0:00:00]} 31. gxf4 {[%emt 0:00:00]} Kh7 {
[%emt 0:00:00]} 32. Nb4 {[%emt 0:00:00]} Rg8 {[%emt 0:00:00]} 33. Nxa6 {
[%emt 0:00:00]} Nd5 {[%emt 0:00:00]} 34. Nc5 {[%emt 0:00:00]} Qd6 {[%emt 0:00:
42]} 35. Qxb5 {[%emt 0:00:00]} Nxf4 {[%emt 0:00:40]} 36. Rh1 {[%emt 0:04:30]}
Rb8 {[%emt 0:05:00]} 37. Qd7+ {[%emt 0:00:18]} Qxd7 {[%emt 0:00:15]} 38. Nxd7 {
[%emt 0:00:16]} Rxb2+ {[%emt 0:00:13]} 39. Kg3 {[%emt 0:00:35]} Nd5 {[%emt 0:
06:42]} 40. Re1 {[%emt 0:06:25]} Rb3 {[%emt 0:03:09]} 41. Kf2 {[%emt 0:00:40]}
Rxa3 {[%emt 0:03:35]} 42. Nf8+ {[%emt 0:00:42]} Kg7 {[%emt 0:00:29]} 43. Nxe6+
{[%emt 0:00:17]} Kf6 {[%emt 0:00:12]} 44. Nc5 {[%emt 0:00:30]} h5 {[%emt 0:01:
19]} 45. Nd7+ {[%emt 0:01:22]} Ke6 {[%emt 0:05:12]} 46. Ne5 {[%emt 0:00:28]} f4
{[%emt 0:00:00]} 47. exf4 {[%emt 0:00:00]} Kf5 {[%emt 0:00:00]} 48. Nc4 {
[%emt 0:00:00]} Rf3+ {[%emt 0:00:00]} 49. Kg1 {[%emt 0:00:00]} e3 {[%emt 0:00:
00]} 50. Kg2 {[%emt 0:00:00]} Kxf4 {[%emt 0:00:00]} 51. Rf1 {[%emt 0:00:00]}
Rxf1 {[%emt 0:00:00]} 52. Kxf1 {[%emt 0:00:00]} Ke4 {[%emt 0:00:00]} 53. Nd6+ {
[%emt 0:00:00]} Kxd4 {[%emt 0:00:00]} 54. Ke2 {[%emt 0:00:00]} Ke5 {[%emt 0:00:
00]} 55. Nf7+ {[%emt 0:00:00]} Kf4 {[%emt 0:00:00]} 56. Nd6 {[%emt 0:00:20]} h4
{[%emt 0:00:00]} 57. Nc4 {[%emt 0:00:35]} Ke4 {[%emt 0:00:00]} 58. Nd6+ {
[%emt 0:00:50]} Ke5 {[%emt 0:00:00]} 59. Nb5 {[%emt 0:06:55]} Kf4 {[%emt 0:00:
00]} 60. Nd6 {[%emt 0:03:26]} Nc3+ {[%emt 0:08:21]} 61. Ke1 {[%emt 0:00:22]}
Ne4 {[%emt 0:02:21]} 62. Nc4 {[%emt 0:04:19]} Nc3 {[%emt 0:01:43]} 63. Nd6 {
[%emt 0:00:40]} Kf3 {[%emt 0:01:18]} 64. Nf5 {[%emt 0:03:50]} h3 {[%emt 0:00:
11]} 65. Nh4+ {[%emt 0:02:57]} Ke4 {[%emt 0:00:38]} 66. Ng6 {[%emt 0:00:30]}
Nd5 {[%emt 0:00:39]} 67. Ke2 {[%emt 0:00:39]} Nf6 {[%emt 0:01:09]} 68. Nh4 {
[%emt 0:00:47]} Nh5 {[%emt 0:00:16]} 69. Ng6 {[%emt 0:00:50]} Ng3+ {[%emt 0:00:
14]} 70. Ke1 {[%emt 0:00:55]} Nf5 {[%emt 0:00:12]} 71. Kf1 {[%emt 0:01:46]} Nd4
{[%emt 0:00:17]} 72. Ne7 {[%emt 0:01:34]} Kf3 {[%emt 0:00:47]} 73. Nd5 {
[%emt 0:00:47]} e2+ {[%emt 0:00:18]} 0-1

[Event "6e Open International d'Echecs des Sable"]
[Site "Sables d'Olonne, France"]
[Date "2019.07.17"]
[Round "7.3"]
[White "Bujisho, Benjamin"]
[Black "Duboue, Peio"]
[Result "1/2-1/2"]
[ECO "C65"]
[WhiteElo "2326"]
[BlackElo "2409"]
[Annotator "jeanluc"]
[PlyCount "129"]
[EventDate "2019.??.??"]
[TimeControl "1/40:0"]
[WhiteClock "0:04:38"]
[BlackClock "0:15:19"]

1. e4 {[%emt 0:00:00]} e5 {[%emt 0:00:00]} 2. Nf3 {[%emt 0:00:00]} Nc6 {
[%emt 0:00:00]} 3. Bb5 {[%emt 0:00:00]} Nf6 {[%emt 0:00:00]} 4. O-O {[%emt 0:
00:00]} Be7 {[%emt 0:00:00]} 5. Re1 {[%emt 0:00:00]} d6 {[%emt 0:00:00]} 6. d4
{[%emt 0:00:00]} exd4 {[%emt 0:00:00]} 7. Nxd4 {[%emt 0:00:00]} Bd7 {[%emt 0:
00:00]} 8. Nxc6 {[%emt 0:00:00]} bxc6 {[%emt 0:00:00]} 9. Bf1 {[%emt 0:00:00]}
O-O {[%emt 0:00:00]} 10. c4 {[%emt 0:00:00]} Ng4 {[%emt 0:00:00]} 11. Be2 {
[%emt 0:00:00]} Ne5 {[%emt 0:00:00]} 12. f4 {[%emt 0:00:00]} Ng6 {[%emt 0:00:
00]} 13. g3 {[%emt 0:00:00]} f5 {[%emt 0:00:00]} 14. exf5 {[%emt 0:00:00]} Bxf5
{[%emt 0:00:00]} 15. Bf3 {[%emt 0:00:00]} Bd7 {[%emt 0:00:00]} 16. Bd2 {
[%emt 0:00:00]} Rb8 {[%emt 0:00:00]} 17. Bc3 {[%emt 0:00:00]} Bf6 {[%emt 0:00:
00]} 18. Qd2 {[%emt 0:00:00]} Kh8 {[%emt 0:00:00]} 19. Bxf6 {[%emt 0:00:00]}
Qxf6 {[%emt 0:00:00]} 20. Nc3 {[%emt 0:00:00]} c5 {[%emt 0:00:00]} 21. Rad1 {
[%emt 0:00:00]} Rfe8 {[%emt 0:00:00]} 22. Rxe8+ {[%emt 0:00:00]} Bxe8 {[%emt 0:
00:00]} 23. b3 {[%emt 0:00:00]} Nf8 {[%emt 0:00:00]} 24. Nd5 {[%emt 0:00:37]}
Qd8 {[%emt 0:00:00]} 25. Re1 {[%emt 0:01:25]} Bc6 {[%emt 0:00:00]} 26. Qc3 {
[%emt 0:04:23]} Bxd5 {[%emt 0:00:00]} 27. Bxd5 {[%emt 0:00:41]} Nd7 {[%emt 0:
00:00]} 28. Bc6 {[%emt 0:01:36]} Nf6 {[%emt 0:00:00]} 29. Qe3 {[%emt 0:02:45]}
h6 {[%emt 0:01:19]} 30. Qe7 {[%emt 0:01:45]} Ng8 {[%emt 0:00:51]} 31. Qf7 {
[%emt 0:01:01]} Qf6 {[%emt 0:02:18]} 32. Qxf6 {[%emt 0:03:19]} Nxf6 {[%emt 0:
08:40]} 33. Re7 {[%emt 0:00:24]} Rc8 {[%emt 0:00:14]} 34. Bb7 {[%emt 0:02:44]}
Re8 {[%emt 0:00:14]} 35. Rxc7 {[%emt 0:00:29]} Re1+ {[%emt 0:01:11]} 36. Kf2 {
[%emt 0:00:28]} Ra1 {[%emt 0:00:13]} 37. Kf3 {[%emt 0:01:21]} Rxa2 {[%emt 0:00:
47]} 38. g4 {[%emt 0:00:11]} Rb2 {[%emt 0:06:37]} 39. g5 {[%emt 0:00:14]} Rxb3+
{[%emt 0:00:13]} 40. Kg2 {[%emt 0:02:21]} hxg5 {[%emt 0:03:11]} 41. fxg5 {
[%emt 0:00:00]} Nh5 {[%emt 0:00:00]} 42. Be4 {[%emt 0:00:00]} Nf4+ {[%emt 0:00:
00]} 43. Kf1 {[%emt 0:00:00]} g6 {[%emt 0:00:00]} 44. Rf7 {[%emt 0:00:00]} Nh3
{[%emt 0:00:00]} 45. Bxg6 {[%emt 0:00:00]} Nxg5 {[%emt 0:00:00]} 46. Rxa7 {
[%emt 0:00:00]} Nf3 {[%emt 0:00:00]} 47. Bf7 {[%emt 0:01:29]} Nxh2+ {[%emt 0:
00:00]} 48. Ke2 {[%emt 0:00:23]} Kg7 {[%emt 0:00:00]} 49. Bd5+ {[%emt 0:01:06]}
Kf6 {[%emt 0:00:00]} 50. Rf7+ {[%emt 0:00:51]} Kg6 {[%emt 0:00:00]} 51. Rd7 {
[%emt 0:00:35]} Rb6 {[%emt 0:00:00]} 52. Ke3 {[%emt 0:00:59]} Ng4+ {[%emt 0:00:
00]} 53. Kf4 {[%emt 0:01:03]} Ne5 {[%emt 0:00:00]} 54. Re7 {[%emt 0:01:10]} Rb4
{[%emt 0:00:00]} 55. Re6+ {[%emt 0:00:24]} Kg7 {[%emt 0:00:00]} 56. Rxd6 {
[%emt 0:00:34]} Nxc4 {[%emt 0:00:00]} 57. Bxc4 {[%emt 0:00:37]} Rxc4+ {[%emt 0:
00:00]} 58. Ke3 {[%emt 0:00:55]} Kf7 {[%emt 0:00:06]} 59. Kd3 {[%emt 0:00:59]}
Rc1 {[%emt 0:00:13]} 60. Kd2 {[%emt 0:00:27]} Ra1 {[%emt 0:00:22]} 61. Rc6 {
[%emt 0:00:29]} Ra5 {[%emt 0:00:14]} 62. Kc3 {[%emt 0:00:14]} Ke7 {[%emt 0:00:
13]} 63. Kc4 {[%emt 0:00:15]} Kd7 {[%emt 0:00:13]} 64. Rxc5 {[%emt 0:00:14]}
Rxc5+ {[%emt 0:00:12]} 65. Kxc5 {[%emt 0:00:14]} 1/2-1/2

[Event "6e Open International d'Echecs des Sable"]
[Site "Sables d'Olonne, France"]
[Date "2019.07.17"]
[Round "7.4"]
[White "Frick, Christoph"]
[Black "Lucas, Arthur"]
[Result "0-1"]
[ECO "B25"]
[WhiteElo "2134"]
[BlackElo "2286"]
[Annotator "jeanluc"]
[PlyCount "76"]
[EventDate "2019.??.??"]
[TimeControl "1/40:0"]
[WhiteClock "0:00:55"]
[BlackClock "0:00:53"]

1. e4 {[%emt 0:00:00]} c5 {[%emt 0:00:00]} 2. Nc3 {[%emt 0:00:00]} Nc6 {
[%emt 0:00:00]} 3. g3 {[%emt 0:00:00]} g6 {[%emt 0:00:00]} 4. Bg2 {[%emt 0:00:
00]} Bg7 {[%emt 0:00:00]} 5. d3 {[%emt 0:00:00]} d6 {[%emt 0:00:00]} 6. Nh3 {
[%emt 0:00:00]} Nh6 {[%emt 0:00:00]} 7. O-O {[%emt 0:00:00]} O-O {[%emt 0:00:
00]} 8. Nd5 {[%emt 0:00:00]} Bg4 {[%emt 0:00:00]} 9. f3 {[%emt 0:00:00]} Bd7 {
[%emt 0:00:00]} 10. c3 {[%emt 0:00:00]} Qc8 {[%emt 0:00:00]} 11. Nf2 {[%emt 0:
00:00]} e6 {[%emt 0:00:00]} 12. Ne3 {[%emt 0:00:00]} b5 {[%emt 0:00:00]} 13.
Bd2 {[%emt 0:00:00]} f5 {[%emt 0:00:00]} 14. Rc1 {[%emt 0:00:00]} Nf7 {[%emt 0:
00:00]} 15. f4 {[%emt 0:00:00]} a5 {[%emt 0:00:00]} 16. Re1 {[%emt 0:00:00]} a4
{[%emt 0:00:00]} 17. exf5 {[%emt 0:00:00]} gxf5 {[%emt 0:00:00]} 18. g4 {
[%emt 0:00:00]} fxg4 {[%emt 0:11:59]} 19. Qxg4 {[%emt 0:04:11]} e5 {[%emt 0:03:
18]} 20. Qh5 {[%emt 0:03:20]} exf4 {[%emt 0:00:00]} 21. Nd5 {[%emt 0:00:00]}
Qd8 {[%emt 0:00:00]} 22. Bxf4 {[%emt 0:00:00]} Nfe5 {[%emt 0:00:00]} 23. Be4 {
[%emt 0:00:00]} Ng6 {[%emt 0:00:00]} 24. Bg5 {[%emt 0:00:00]} Qb8 {[%emt 0:00:
11]} 25. Ng4 {[%emt 0:00:00]} Bxg4 {[%emt 0:00:35]} 26. Qxg4 {[%emt 0:00:00]}
Qc8 {[%emt 0:00:42]} 27. Qg2 {[%emt 0:00:00]} Ra7 {[%emt 0:00:31]} 28. Rf1 {
[%emt 0:00:00]} Nce5 {[%emt 0:00:25]} 29. h4 {[%emt 0:00:00]} Qg4 {[%emt 0:01:
02]} 30. Qxg4 {[%emt 0:00:00]} Nxg4 {[%emt 0:00:11]} 31. Bf5 {[%emt 0:01:15]}
Nh6 {[%emt 0:00:49]} 32. Be6+ {[%emt 0:02:29]} Kh8 {[%emt 0:00:11]} 33. Rce1 {
[%emt 0:04:57]} Ne5 {[%emt 0:00:48]} 34. Rxf8+ {[%emt 0:01:44]} Bxf8 {[%emt 0:
00:10]} 35. Rf1 {[%emt 0:02:27]} Bg7 {[%emt 0:00:44]} 36. Be7 {[%emt 0:02:02]}
Nxd3 {[%emt 0:00:46]} 37. Bf8 {[%emt 0:01:26]} Nxb2 {[%emt 0:01:23]} 38. Bxd6 {
[%emt 0:00:34]} Ra6 {[%emt 0:00:42]} 0-1

[Event "6e Open International d'Echecs des Sable"]
[Site "Sables d'Olonne, France"]
[Date "2019.07.17"]
[Round "7.5"]
[White "Mariette, Lucas"]
[Black "Renault, Jerome"]
[Result "1/2-1/2"]
[ECO "B29"]
[WhiteElo "2244"]
[BlackElo "2097"]
[Annotator "jeanluc"]
[PlyCount "93"]
[EventDate "2019.??.??"]
[TimeControl "1/40:0"]
[WhiteClock "0:31:53"]
[BlackClock "0:18:23"]

1. e4 {[%emt 0:00:00]} c5 {[%emt 0:00:00]} 2. Nf3 {[%emt 0:00:00]} Nf6 {
[%emt 0:00:00]} 3. Nc3 {[%emt 0:00:00]} Nc6 {[%emt 0:00:00]} 4. d4 {[%emt 0:00:
00]} d5 {[%emt 0:00:00]} 5. exd5 {[%emt 0:00:00]} Nxd5 {[%emt 0:00:00]} 6. Nxd5
{[%emt 0:00:00]} Qxd5 {[%emt 0:00:00]} 7. dxc5 {[%emt 0:00:00]} Qxc5 {[%emt 0:
00:00]} 8. c3 {[%emt 0:00:00]} g6 {[%emt 0:00:00]} 9. Be3 {[%emt 0:00:00]} Qa5
{[%emt 0:00:00]} 10. Qb3 {[%emt 0:00:00]} Bg7 {[%emt 0:00:00]} 11. Bb5 {
[%emt 0:00:00]} O-O {[%emt 0:00:00]} 12. Bxc6 {[%emt 0:00:00]} bxc6 {[%emt 0:
00:00]} 13. Nd4 {[%emt 0:00:00]} Bxd4 {[%emt 0:00:00]} 14. Bxd4 {[%emt 0:00:00]
} e5 {[%emt 0:00:00]} 15. Be3 {[%emt 0:00:00]} Ba6 {[%emt 0:00:00]} 16. f3 {
[%emt 0:00:00]} Rab8 {[%emt 0:00:00]} 17. Qc2 {[%emt 0:00:00]} Rfd8 {[%emt 0:
00:00]} 18. b4 {[%emt 0:00:00]} Qc7 {[%emt 0:00:00]} 19. Kf2 {[%emt 0:00:00]}
Bd3 {[%emt 0:00:00]} 20. Qa4 {[%emt 0:00:00]} a6 {[%emt 0:00:00]} 21. Rhd1 {
[%emt 0:00:00]} Rd5 {[%emt 0:00:00]} 22. Rd2 {[%emt 0:00:00]} Rbd8 {[%emt 0:00:
00]} 23. Rad1 {[%emt 0:00:00]} Qd7 {[%emt 0:00:00]} 24. Qb3 {[%emt 0:00:00]}
Qe6 {[%emt 0:00:12]} 25. a4 {[%emt 0:00:00]} e4 {[%emt 0:02:07]} 26. Bb6 {
[%emt 0:00:00]} Bc4 {[%emt 0:05:04]} 27. Qb2 {[%emt 0:00:00]} Rxd2+ {[%emt 0:
02:26]} 28. Rxd2 {[%emt 0:00:10]} e3+ {[%emt 0:00:31]} 29. Bxe3 {[%emt 0:00:50]
} Re8 {[%emt 0:00:13]} 30. Re2 {[%emt 0:01:13]} Bxe2 {[%emt 0:00:17]} 31. Qxe2
{[%emt 0:00:13]} f5 {[%emt 0:00:23]} 32. Qd2 {[%emt 0:00:32]} Re7 {[%emt 0:01:
45]} 33. a5 {[%emt 0:01:16]} Qe5 {[%emt 0:01:50]} 34. g3 {[%emt 0:06:20]} Qe6 {
[%emt 0:01:34]} 35. Qd8+ {[%emt 0:05:03]} Re8 {[%emt 0:00:34]} 36. Qd2 {
[%emt 0:00:29]} Kf7 {[%emt 0:00:47]} 37. Bd4 {[%emt 0:00:50]} Qc4 {[%emt 0:01:
35]} 38. Be3 {[%emt 0:00:36]} h5 {[%emt 0:00:31]} 39. h4 {[%emt 0:04:24]} Qe6 {
[%emt 0:01:15]} 40. Bd4 {[%emt 0:00:53]} Qc4 {[%emt 0:02:14]} 41. Bc5 {[%emt 0:
00:45]} Qe6 {[%emt 0:00:00]} 42. Bd4 {[%emt 0:00:00]} Qd5 {[%emt 0:00:00]} 43.
Kg2 {[%emt 0:00:00]} Qc4 {[%emt 0:00:00]} 44. Kf2 {[%emt 0:00:00]} Kg8 {
[%emt 0:08:19]} 45. Be3 {[%emt 0:00:36]} Kf7 {[%emt 0:00:03]} 46. Bd4 {[%emt 0:
00:01]} g5 {[%emt 0:00:08]} 47. hxg5 {[%emt 0:00:03]} 1/2-1/2

[Event "6e Open International d'Echecs des Sable"]
[Site "Sables d'Olonne, France"]
[Date "2019.07.17"]
[Round "7.6"]
[White "Le Pen, Steven"]
[Black "Dalaud, Dorian"]
[Result "0-1"]
[ECO "B90"]
[WhiteElo "2094"]
[BlackElo "2220"]
[Annotator "jeanluc"]
[PlyCount "94"]
[EventDate "2019.??.??"]
[TimeControl "1/40:0"]
[WhiteClock "0:07:11"]
[BlackClock "0:09:39"]

1. e4 {[%emt 0:00:00]} c5 {[%emt 0:00:00]} 2. Nf3 {[%emt 0:00:00]} d6 {[%emt 0:
00:00]} 3. d4 {[%emt 0:00:00]} cxd4 {[%emt 0:00:00]} 4. Nxd4 {[%emt 0:00:00]}
Nf6 {[%emt 0:00:00]} 5. Nc3 {[%emt 0:00:00]} a6 {[%emt 0:00:00]} 6. Be3 {
[%emt 0:00:00]} e5 {[%emt 0:00:00]} 7. Nb3 {[%emt 0:00:00]} Be6 {[%emt 0:00:00]
} 8. f3 {[%emt 0:00:00]} h5 {[%emt 0:00:00]} 9. Qd2 {[%emt 0:00:00]} Nbd7 {
[%emt 0:00:00]} 10. Nd5 {[%emt 0:00:00]} Bxd5 {[%emt 0:00:00]} 11. exd5 {
[%emt 0:00:00]} g6 {[%emt 0:00:00]} 12. Be2 {[%emt 0:00:00]} Bg7 {[%emt 0:00:
00]} 13. O-O {[%emt 0:00:00]} O-O {[%emt 0:00:00]} 14. a4 {[%emt 0:00:00]} a5 {
[%emt 0:00:00]} 15. Bb5 {[%emt 0:00:00]} Qc7 {[%emt 0:00:00]} 16. c4 {[%emt 0:
00:00]} b6 {[%emt 0:00:00]} 17. h3 {[%emt 0:00:00]} Nc5 {[%emt 0:00:00]} 18.
Nxc5 {[%emt 0:00:53]} bxc5 {[%emt 0:05:47]} 19. Ra3 {[%emt 0:08:15]} Nh7 {
[%emt 0:03:53]} 20. Rb3 {[%emt 0:00:00]} Rab8 {[%emt 0:00:00]} 21. Bf2 {
[%emt 0:00:00]} f5 {[%emt 0:00:00]} 22. Be1 {[%emt 0:00:00]} e4 {[%emt 0:00:00]
} 23. Qxa5 {[%emt 0:00:00]} Bd4+ {[%emt 0:00:00]} 24. Kh1 {[%emt 0:00:00]} Qe7
{[%emt 0:00:00]} 25. Qd2 {[%emt 0:00:00]} exf3 {[%emt 0:00:00]} 26. Rbxf3 {
[%emt 0:00:00]} Ng5 {[%emt 0:00:00]} 27. Rd3 {[%emt 0:00:00]} f4 {[%emt 0:00:
00]} 28. Bh4 {[%emt 0:00:00]} Be3 {[%emt 0:00:00]} 29. Qe2 {[%emt 0:00:00]} Rf5
{[%emt 0:00:00]} 30. Rxf4 {[%emt 0:00:00]} Rxf4 {[%emt 0:00:00]} 31. Rxe3 {
[%emt 0:00:00]} Qf6 {[%emt 0:00:00]} 32. Re6 {[%emt 0:01:44]} Qf5 {[%emt 0:00:
00]} 33. Bxg5 {[%emt 0:01:39]} Qxg5 {[%emt 0:00:00]} 34. a5 {[%emt 0:06:04]}
Rbf8 {[%emt 0:00:00]} 35. Qe3 {[%emt 0:01:06]} Rf1+ {[%emt 0:00:00]} 36. Kh2 {
[%emt 0:00:13]} Qxe3 {[%emt 0:00:00]} 37. Rxe3 {[%emt 0:00:14]} Ra1 {[%emt 0:
00:00]} 38. Rg3 {[%emt 0:03:59]} Kg7 {[%emt 0:02:00]} 39. a6 {[%emt 0:01:05]}
Rff1 {[%emt 0:07:35]} 40. Ra3 {[%emt 0:00:52]} g5 {[%emt 0:02:30]} 41. Ba4 {
[%emt 0:00:00]} Rxa3 {[%emt 0:00:00]} 42. bxa3 {[%emt 0:00:00]} Rf7 {[%emt 0:
00:00]} 43. Kg3 {[%emt 0:15:06]} Kh6 {[%emt 0:00:00]} 44. Bc6 {[%emt 0:00:00]}
h4+ {[%emt 0:00:00]} 45. Kh2 {[%emt 0:00:00]} Ra7 {[%emt 0:00:00]} 46. Bb7 {
[%emt 0:00:00]} Kg6 {[%emt 0:00:00]} 47. g3 {[%emt 0:00:00]} Kf5 {[%emt 0:00:
00]} 0-1

[Event "6e Open International d'Echecs des Sable"]
[Site "Sables d'Olonne, France"]
[Date "2019.07.17"]
[Round "7.7"]
[White "Besson, Bastien"]
[Black "Angermuende, Dirk"]
[Result "1-0"]
[ECO "C14"]
[WhiteElo "2204"]
[BlackElo "1972"]
[Annotator "jeanluc"]
[PlyCount "43"]
[EventDate "2019.??.??"]
[TimeControl "1/40:0"]
[WhiteClock "0:44:50"]
[BlackClock "0:09:19"]

1. e4 {[%emt 0:00:00]} e6 {[%emt 0:00:00]} 2. d4 {[%emt 0:00:00]} d5 {[%emt 0:
00:00]} 3. Nc3 {[%emt 0:00:00]} Nf6 {[%emt 0:00:00]} 4. Bg5 {[%emt 0:00:00]}
Be7 {[%emt 0:00:00]} 5. e5 {[%emt 0:00:00]} Nfd7 {[%emt 0:00:00]} 6. h4 {
[%emt 0:00:00]} c5 {[%emt 0:00:00]} 7. Bxe7 {[%emt 0:00:00]} Kxe7 {[%emt 0:00:
00]} 8. f4 {[%emt 0:00:00]} Nc6 {[%emt 0:00:00]} 9. Nf3 {[%emt 0:00:00]} a6 {
[%emt 0:00:00]} 10. Qd2 {[%emt 0:00:00]} cxd4 {[%emt 0:00:00]} 11. Nxd4 {
[%emt 0:00:00]} Qb6 {[%emt 0:00:00]} 12. Nb3 {[%emt 0:00:00]} Rd8 {[%emt 0:00:
00]} 13. Bd3 {[%emt 0:00:00]} h6 {[%emt 0:00:00]} 14. O-O-O {[%emt 0:00:00]}
Nc5 {[%emt 0:00:00]} 15. Qe2 {[%emt 0:00:00]} Nxb3+ {[%emt 0:00:00]} 16. axb3 {
[%emt 0:00:00]} Nb4 {[%emt 0:00:00]} 17. Qg4 {[%emt 0:00:00]} Nxd3+ {[%emt 0:
00:00]} 18. Rxd3 {[%emt 0:00:00]} Rg8 {[%emt 0:02:49]} 19. Rxd5 {[%emt 0:00:00]
} Qe3+ {[%emt 0:00:22]} 20. Rd2 {[%emt 0:00:00]} Rd8 {[%emt 0:00:50]} 21. Rhd1
{[%emt 0:00:00]} Bd7 {[%emt 0:05:54]} 22. h5 {[%emt 0:00:04]} 1-0

[Event "6e Open International d'Echecs des Sable"]
[Site "Sables d'Olonne, France"]
[Date "2019.07.18"]
[Round "8.1"]
[White "Vidal, Llewellyn"]
[Black "Eugene, Floryan"]
[Result "1/2-1/2"]
[ECO "E62"]
[WhiteElo "2336"]
[BlackElo "2300"]
[Annotator "jeanluc"]
[PlyCount "52"]
[EventDate "2019.??.??"]
[TimeControl "1/40:0"]
[WhiteClock "0:58:45"]
[BlackClock "0:23:15"]

1. c4 {[%emt 0:00:00]} Nf6 {[%emt 0:00:00]} 2. Nc3 {[%emt 0:00:00]} g6 {
[%emt 0:00:00]} 3. g3 {[%emt 0:00:00]} Bg7 {[%emt 0:00:00]} 4. Bg2 {[%emt 0:00:
00]} O-O {[%emt 0:00:00]} 5. d4 {[%emt 0:00:00]} d6 {[%emt 0:00:00]} 6. Nf3 {
[%emt 0:00:00]} Nc6 {[%emt 0:00:00]} 7. O-O {[%emt 0:00:00]} e5 {[%emt 0:00:00]
} 8. dxe5 {[%emt 0:00:00]} Nxe5 {[%emt 0:00:00]} 9. Nxe5 {[%emt 0:00:00]} dxe5
{[%emt 0:00:00]} 10. Qxd8 {[%emt 0:00:00]} Rxd8 {[%emt 0:00:00]} 11. Bg5 {
[%emt 0:00:00]} Rd4 {[%emt 0:00:00]} 12. b3 {[%emt 0:00:00]} c6 {[%emt 0:00:00]
} 13. Rad1 {[%emt 0:00:00]} h6 {[%emt 0:00:00]} 14. Be3 {[%emt 0:00:00]} Rxd1 {
[%emt 0:00:00]} 15. Rxd1 {[%emt 0:00:00]} Be6 {[%emt 0:00:00]} 16. h3 {[%emt 0:
00:00]} Bf8 {[%emt 0:00:00]} 17. Na4 {[%emt 0:00:00]} Nd7 {[%emt 0:00:00]} 18.
f4 {[%emt 0:00:00]} exf4 {[%emt 0:00:00]} 19. gxf4 {[%emt 0:00:00]} f5 {
[%emt 0:00:00]} 20. Kf2 {[%emt 0:00:00]} Be7 {[%emt 0:00:00]} 21. Kg3 {[%emt 0:
00:00]} g5 {[%emt 0:00:00]} 22. Bf3 {[%emt 0:00:00]} Kh7 {[%emt 0:00:00]} 23.
Rg1 {[%emt 0:00:00]} gxf4+ {[%emt 0:00:00]} 24. Bxf4 {[%emt 0:00:00]} Nc5 {
[%emt 0:00:00]} 25. Nxc5 {[%emt 0:00:00]} Bxc5 {[%emt 0:00:00]} 26. e3 {
[%emt 0:00:00]} b5 {[%emt 0:00:00]} 1/2-1/2

[Event "6e Open International d'Echecs des Sable"]
[Site "Sables d'Olonne, France"]
[Date "2019.07.18"]
[Round "8.2"]
[White "Colin, Vincent"]
[Black "Besson, Bastien"]
[Result "1-0"]
[ECO "E92"]
[WhiteElo "2370"]
[BlackElo "2204"]
[Annotator "jeanluc"]
[PlyCount "78"]
[EventDate "2019.??.??"]
[TimeControl "1/40:0"]
[WhiteClock "0:47:10"]
[BlackClock "0:02:02"]

1. d4 {[%emt 0:01:31]} d6 {[%emt 0:00:00]} 2. Nf3 {[%emt 0:00:00]} Nf6 {
[%emt 0:00:00]} 3. c4 {[%emt 0:00:00]} g6 {[%emt 0:00:00]} 4. Nc3 {[%emt 0:00:
00]} Bg7 {[%emt 0:00:00]} 5. e4 {[%emt 0:00:00]} O-O {[%emt 0:00:00]} 6. Be2 {
[%emt 0:00:00]} e5 {[%emt 0:00:00]} 7. d5 {[%emt 0:00:00]} Na6 {[%emt 0:00:00]}
8. Be3 {[%emt 0:00:00]} Ng4 {[%emt 0:00:00]} 9. Bg5 {[%emt 0:00:00]} f6 {
[%emt 0:00:00]} 10. Bh4 {[%emt 0:00:00]} Nh6 {[%emt 0:00:00]} 11. Nd2 {[%emt 0:
00:00]} Nc5 {[%emt 0:00:00]} 12. f3 {[%emt 0:00:00]} a5 {[%emt 0:00:00]} 13.
Qc2 {[%emt 0:00:00]} Bd7 {[%emt 0:00:00]} 14. O-O-O {[%emt 0:00:00]} Qe7 {
[%emt 0:00:00]} 15. Kb1 {[%emt 0:00:00]} Rfc8 {[%emt 0:00:00]} 16. Bf2 {
[%emt 0:00:00]} Nf7 {[%emt 0:00:00]} 17. h4 {[%emt 0:00:00]} Qe8 {[%emt 0:00:
00]} 18. h5 {[%emt 0:00:00]} Na4 {[%emt 0:00:00]} 19. Nb5 {[%emt 0:00:00]} Nc5
{[%emt 0:00:00]} 20. hxg6 {[%emt 0:00:00]} hxg6 {[%emt 0:00:00]} 21. Be3 {
[%emt 0:00:00]} Bf8 {[%emt 0:00:00]} 22. Rc1 {[%emt 0:00:00]} c6 {[%emt 0:00:
00]} 23. Nc3 {[%emt 0:00:00]} Qd8 {[%emt 0:00:00]} 24. Qd1 {[%emt 0:00:00]} Bg7
{[%emt 0:00:00]} 25. Qg1 {[%emt 0:00:00]} cxd5 {[%emt 0:00:00]} 26. Nxd5 {
[%emt 0:00:00]} Be6 {[%emt 0:00:00]} 27. Qh2 {[%emt 0:00:00]} Bxd5 {[%emt 0:00:
00]} 28. Qh7+ {[%emt 0:00:00]} Kf8 {[%emt 0:00:00]} 29. cxd5 {[%emt 0:00:00]}
f5 {[%emt 0:08:00]} 30. Qxg6 {[%emt 0:00:00]} f4 {[%emt 0:00:24]} 31. Bf2 {
[%emt 0:00:00]} Qf6 {[%emt 0:00:28]} 32. Qg4 {[%emt 0:00:00]} Qg5 {[%emt 0:05:
48]} 33. Qxg5 {[%emt 0:00:00]} Nxg5 {[%emt 0:01:13]} 34. Nc4 {[%emt 0:00:00]}
Ncxe4 {[%emt 0:01:57]} 35. fxe4 {[%emt 0:00:00]} Nxe4 {[%emt 0:00:12]} 36. Bh4
{[%emt 0:00:00]} b5 {[%emt 0:04:24]} 37. Nb6 {[%emt 0:00:00]} Rxc1+ {[%emt 0:
00:12]} 38. Rxc1 {[%emt 0:00:10]} Ra7 {[%emt 0:00:01]} 39. Rc8+ {[%emt 0:00:00]
} Kf7 {[%emt 0:00:13]} 1-0